fUST/lending_fUST_20240312
["ID","MTS","AMOUNT","RATE_DAILY","PERIOD"]
[318438512,1710233446303,-426.43,0.000155,2]
[318438516,1710233663871,400.0,0.00012,7]
[318438517,1710233667490,271.12159936,0.0001,2]
[318438518,1710233692835,2154.39244953,0.0001,2]
[318438519,1710233712841,1196.88469419,0.0001,2]
[318438520,1710233732839,1196.88469419,0.0001,2]
[318438521,1710233752889,623.57692567,0.0001,2]
[318438522,1710233774846,623.57692567,0.0001,2]
[318438523,1710233790849,623.57692567,0.0001,2]
[318438524,1710233812869,623.57692567,0.0001,2]
[318438525,1710233823815,155.4136351,0.0001,2]
[318438527,1710233830946,623.57692567,0.0001,2]
[318438528,1710233854848,623.57692567,0.0001,2]
[318438529,1710233864504,15955.09649815,0.0001,2]
[318438530,1710233870860,623.57692567,0.0001,2]
[318438531,1710233880520,4100.28903855,0.0001,2]
[318438532,1710233890854,623.57692567,0.0001,2]
[318438533,1710233908856,623.57692567,0.0001,2]
[318438534,1710233929619,-20000.0,0.00016,10]
[318438535,1710233932863,623.57692567,0.0001,2]
[318438536,1710233950862,561.33892157,0.0001,2]
[318438537,1710233951983,-262.53732073,0.00015498,7]
[318438538,1710234007248,-2599.10074081,0.00012235,2]
[318438539,1710234015555,2599.10074081,0.00012235,2]
[318438540,1710234023516,8830.04591777,0.00012234,2]
[318438541,1710234046632,-2225.56575043,0.00012356,5]
[318438542,1710234055043,1474.41177418,0.00012233,2]
[318438543,1710234063155,1448.46792384,0.00012232,2]
[318438544,1710234097234,2072.05893773,0.00012232,2]
[318438545,1710234121123,644.39900357,0.00012232,2]
[318438546,1710234215034,-2225.56575043,0.00014395,5]
[318438552,1710234346384,2225.56575043,0.00014394,5]
[318438566,1710234473410,2225.56575043,0.00014393,5]
[318438745,1710234638703,-499.61502552,0.00012328,2]
[318438746,1710234638763,-2099.48571529,0.00012328,2]
[318438747,1710234638772,-5986.98962942,0.00012329,2]
[318438814,1710234646343,-11134.21670319,0.00012327,2]
[318438816,1710234646355,-7794.50595341,0.00012329,2]
[318438829,1710234650250,1481.87936951,0.00012206,2]
[318438831,1710234658091,292.53240467,0.00012206,2]
[318438855,1710234688696,2072.05893773,0.00012206,2]
[318438856,1710234695662,155.18466976,0.00012206,2]
[318438857,1710234702678,2070.64606141,0.00012206,2]
[318438858,1710234709819,155.18311608,0.00012206,2]
[318438859,1710234729659,158.69296806,0.00012206,2]
[318438860,1710234792696,6447.53,0.00020888,22]
[318438862,1710234974516,16347.13669326,0.0001176,2]
[318438863,1710234978232,4008.20440364,0.00011642,2]
[318438864,1710234986738,3967.76213664,0.00011641,2]
[318438889,1710235150158,2599.10074081,0.0001175,2]
[318438895,1710235159473,1474.94168341,0.0001175,2]
[318438897,1710235162876,7422.81113546,0.0001175,2]
[318438919,1710235238772,155.21108708,0.0001175,2]
[318438934,1710235334830,1170.0,0.00011641,2]
[318438935,1710235343385,1170.0,0.00011641,2]
[318438937,1710235616210,2599.10074081,0.0001175,2]
[318438938,1710235646926,6185.67594622,0.0001175,2]
[318439024,1710235796375,1000.0,0.00025,99]
[318439066,1710235832407,-5873.01830669,0.00012398,2]
[318439068,1710235832416,-1170.0,0.00012499,2]
[318439070,1710235832428,-6130.8946228,0.000125,2]
[318439072,1710235832437,-300.0,0.00013119,2]
[318439074,1710235832449,-4008.2044037,0.0001312,2]
[318439076,1710235832459,-3993.5234304,0.00013344,2]
[318439078,1710235832468,-2599.10074081,0.00013698,2]
[318439080,1710235832477,-650.932023,0.00013699,2]
[318439082,1710235832486,-161.1790241,0.00013859,2]
[318439084,1710235832496,-153.0,0.00014578,2]
[318439087,1710235832506,-154.3359581,0.00014678,2]
[318439089,1710235832516,-3222.73716798,0.00014681,2]
[318439091,1710235832526,-153.0,0.00014685,2]
[318439093,1710235832535,-201.0608458,0.00014685,2]
[318439095,1710235832545,-153.0,0.00014685,2]
[318439097,1710235832554,-153.0,0.00014685,2]
[318439098,1710235832564,-153.0,0.00014685,2]
[318439099,1710235832573,-201.0608458,0.00014685,2]
[318439100,1710235832583,-153.0,0.00014685,2]
[318439101,1710235832593,-153.0,0.00014685,2]
[318439102,1710235832602,-153.0,0.00014685,2]
[318439103,1710235832612,-201.0608458,0.00014685,2]
[318439104,1710235832621,-153.0,0.00014685,2]
[318439105,1710235832631,-153.0,0.00014685,2]
[318439106,1710235832641,-153.0,0.00014685,2]
[318439107,1710235832652,-201.0608458,0.00014685,2]
[318439108,1710235832661,-153.0,0.00014685,2]
[318439109,1710235832670,-153.0,0.00014685,2]
[318439110,1710235832679,-201.0608458,0.00014685,2]
[318439111,1710235832688,-153.0,0.00014685,2]
[318439112,1710235832698,-201.0608458,0.00014685,2]
[318439113,1710235832708,-153.0,0.00014685,2]
[318439114,1710235832718,-153.0,0.00014685,2]
[318439116,1710235832727,-201.0608458,0.00014685,2]
[318439118,1710235832736,-153.0,0.00014685,2]
[318439120,1710235832745,-153.0,0.00014685,2]
[318439122,1710235832755,-200.02131,0.00014685,2]
[318439123,1710235832764,-154.4602243,0.00014752,2]
[318439125,1710235832773,-236.20338182,0.00015067,2]
[318439127,1710235832782,-500.0,0.00015068,2]
[318439129,1710235832791,-500.0,0.00015068,2]
[318439130,1710235832800,-199.18235522,0.00015209,2]
[318439131,1710235832810,-1000.0,0.00015272,2]
[318439133,1710235832819,-929.22595709,0.00015299,2]
[318439135,1710235832829,-500.0,0.00015299,2]
[318439136,1710235832838,-500.0,0.00015299,2]
[318439137,1710235832847,-32157.59676602,0.000153,2]
[318439138,1710235832856,-1000.0,0.00015309,2]
[318439139,1710235832866,-1000.0,0.0001531,2]
[318439140,1710235832877,-620.01669911,0.00015329,2]
[318439141,1710235832887,-1000.0,0.00015339,2]
[318439142,1710235832897,-1000.0,0.00015345,2]
[318439143,1710235832906,-568.25018677,0.00015396,2]
[318439144,1710235832915,-500.48754073,0.00015397,2]
[318439145,1710235832925,-500.0,0.00015397,2]
[318439146,1710235832935,-167.34338883,0.00015397,2]
[318439147,1710235832944,-500.0,0.00015397,2]
[318439148,1710235832957,-500.0,0.00015397,2]
[318439149,1710235832969,-500.0,0.00015397,2]
[318439150,1710235832980,-362.80341351,0.00015397,2]
[318439151,1710235832990,-500.0,0.00015397,2]
[318439152,1710235832999,-500.0,0.00015397,2]
[318439153,1710235833008,-500.0,0.00015397,2]
[318439154,1710235833018,-500.67754605,0.00015397,2]
[318439155,1710235833027,-500.0,0.00015397,2]
[318439156,1710235833037,-500.0,0.00015397,2]
[318439157,1710235833047,-500.0,0.00015397,2]
[318439158,1710235833058,-500.0,0.00015397,2]
[318439159,1710235833069,-500.0,0.00015397,2]
[318439160,1710235833080,-444.09355211,0.00015397,2]
[318439161,1710235833091,-296.91757583,0.00015397,2]
[318439162,1710235833100,-210.97450618,0.00015397,2]
[318439163,1710235833110,-501.1372705,0.00015397,2]
[318439164,1710235833120,-500.0,0.00015397,2]
[318439165,1710235833131,-500.0,0.00015397,2]
[318439166,1710235833141,-500.0,0.00015397,2]
[318439167,1710235833151,-500.0,0.00015397,2]
[318439168,1710235833161,-500.0,0.00015397,2]
[318439169,1710235833171,-639.06,0.00015397,2]
[318439170,1710235833181,-639.06,0.00015397,2]
[318439171,1710235833192,-773.55,0.00015397,2]
[318439172,1710235833203,-773.55,0.00015397,2]
[318439173,1710235833212,-773.55,0.00015397,2]
[318439174,1710235833222,-500.0,0.00015397,2]
[318439175,1710235833231,-500.0,0.00015397,2]
[318439176,1710235833241,-500.0,0.00015397,2]
[318439177,1710235833251,-857.83,0.00015397,2]
[318439178,1710235833260,-857.83,0.00015397,2]
[318439179,1710235833269,-857.83,0.00015397,2]
[318439180,1710235833279,-500.0,0.00015397,2]
[318439181,1710235833288,-500.0,0.00015397,2]
[318439182,1710235833298,-500.0,0.00015397,2]
[318439183,1710235833307,-500.0,0.00015397,2]
[318439184,1710235833316,-500.0,0.00015397,2]
[318439185,1710235833326,-500.0,0.00015397,2]
[318439186,1710235833335,-500.0,0.00015397,2]
[318439187,1710235833345,-500.0,0.00015397,2]
[318439188,1710235833357,-500.0,0.00015397,2]
[318439189,1710235833367,-502.22324161,0.00015397,2]
[318439190,1710235833377,-500.88814592,0.00015397,2]
[318439191,1710235833387,-500.0,0.00015397,2]
[318439192,1710235833399,-510.61259845,0.00015397,2]
[318439193,1710235833410,-500.0,0.00015397,2]
[318439194,1710235833419,-500.0,0.00015397,2]
[318439195,1710235833431,-500.0,0.00015397,2]
[318439196,1710235833442,-500.0,0.00015397,2]
[318439197,1710235833455,-500.0,0.00015398,2]
[318439198,1710235833464,-500.0,0.00015398,2]
[318439199,1710235833475,-500.0,0.00015398,2]
[318439200,1710235833487,-578.34,0.00015398,2]
[318439201,1710235833497,-578.34,0.00015398,2]
[318439202,1710235833507,-503.63816377,0.00015398,2]
[318439203,1710235833518,-500.0,0.00015398,2]
[318439204,1710235833528,-500.0,0.00015398,2]
[318439205,1710235833538,-493.77247627,0.00015398,2]
[318439206,1710235833549,-500.94834704,0.00015398,2]
[318439207,1710235833558,-500.0,0.00015398,2]
[318439208,1710235833568,-500.0,0.00015398,2]
[318439209,1710235833579,-500.0,0.00015398,2]
[318439210,1710235833588,-500.0,0.00015398,2]
[318439211,1710235833599,-500.0,0.00015398,2]
[318439212,1710235833609,-500.0,0.00015398,2]
[318439213,1710235833619,-500.0,0.00015398,2]
[318439214,1710235833629,-500.0,0.00015398,2]
[318439215,1710235833638,-500.0,0.00015398,2]
[318439216,1710235833648,-500.0,0.00015398,2]
[318439217,1710235833657,-500.0,0.00015398,2]
[318439218,1710235833666,-500.0,0.00015398,2]
[318439219,1710235833676,-500.0,0.00015398,2]
[318439220,1710235833684,-505.70468825,0.00015398,2]
[318439221,1710235833692,-500.0,0.00015398,2]
[318439222,1710235833702,-500.0,0.00015398,2]
[318439223,1710235833711,-500.0,0.00015398,2]
[318439224,1710235833720,-500.48300956,0.00015398,2]
[318439225,1710235833729,-500.0,0.00015398,2]
[318439226,1710235833737,-500.0,0.00015398,2]
[318439227,1710235833830,-501.37167663,0.00015398,2]
[318439228,1710235833841,-501.22927956,0.00015398,2]
[318439229,1710235833850,-500.0,0.00015398,2]
[318439230,1710235833860,-500.0,0.00015398,2]
[318439231,1710235833869,-421.84249638,0.00015398,2]
[318439232,1710235833879,-175.57678253,0.00015398,2]
[318439233,1710235833889,-500.0,0.00015398,2]
[318439234,1710235833898,-502.91589133,0.00015398,2]
[318439235,1710235833907,-500.0,0.00015398,2]
[318439236,1710235833916,-500.0,0.00015398,2]
[318439237,1710235833925,-500.0,0.00015398,2]
[318439238,1710235833934,-500.0,0.00015398,2]
[318439239,1710235833943,-500.0,0.00015398,2]
[318439240,1710235833955,-188.81316592,0.00015398,2]
[318439241,1710235833964,-500.0,0.00015398,2]
[318439242,1710235833973,-500.0,0.00015398,2]
[318439243,1710235833982,-502.62381192,0.00015398,2]
[318439244,1710235833991,-500.0,0.00015398,2]
[318439245,1710235833999,-500.0,0.00015398,2]
[318439246,1710235834008,-500.0,0.00015398,2]
[318439247,1710235834017,-588.20660377,0.00015398,2]
[318439248,1710235834026,-500.0,0.00015398,2]
[318439249,1710235834036,-500.0,0.00015398,2]
[318439250,1710235834046,-500.20238489,0.00015398,2]
[318439251,1710235834055,-500.0,0.00015398,2]
[318439252,1710235834065,-500.0,0.00015398,2]
[318439253,1710235834076,-500.0,0.00015398,2]
[318439254,1710235834086,-500.0,0.00015398,2]
[318439255,1710235834096,-378.92694453,0.00015398,2]
[318439256,1710235834105,-500.0,0.00015398,2]
[318439257,1710235834115,-500.0,0.00015398,2]
[318439258,1710235834124,-500.0,0.00015398,2]
[318439259,1710235834134,-630.98968263,0.00015398,2]
[318439260,1710235834143,-456.41228859,0.00015398,2]
[318439261,1710235834153,-500.0,0.00015398,2]
[318439262,1710235834163,-442.30201515,0.00015398,2]
[318439263,1710235834174,-788.84,0.00015398,2]
[318439264,1710235834184,-788.84,0.00015398,2]
[318439265,1710235834194,-286.42738733,0.00015398,2]
[318439266,1710235834210,-500.0,0.00015398,2]
[318439267,1710235834220,-500.0,0.00015398,2]
[318439268,1710235834230,-500.0,0.00015398,2]
[318439269,1710235834241,-500.0,0.00015398,2]
[318439270,1710235834251,-503.5469137,0.00015398,2]
[318439271,1710235834261,-500.0,0.00015398,2]
[318439272,1710235834272,-162.66200855,0.00015398,2]
[318439273,1710235834284,-500.0,0.00015398,2]
[318439274,1710235834294,-500.0,0.00015398,2]
[318439275,1710235834304,-2320.78,0.00015398,2]
[318439276,1710235834314,-2320.78,0.00015398,2]
[318439277,1710235834324,-2320.78,0.00015398,2]
[318439278,1710235834334,-194.74497756,0.00015398,2]
[318439279,1710235834344,-500.0,0.00015398,2]
[318439280,1710235834354,-500.0,0.00015398,2]
[318439281,1710235834365,-500.0,0.00015398,2]
[318439282,1710235834375,-500.0,0.00015398,2]
[318439283,1710235834387,-500.0,0.00015398,2]
[318439284,1710235834398,-500.0,0.00015398,2]
[318439285,1710235834407,-500.0,0.00015398,2]
[318439286,1710235834417,-500.0,0.00015398,2]
[318439287,1710235834429,-520.33,0.00015398,2]
[318439288,1710235834442,-520.33,0.00015398,2]
[318439289,1710235834455,-1380.68,0.00015398,2]
[318439290,1710235834464,-1380.68,0.00015398,2]
[318439291,1710235834474,-1380.68,0.00015398,2]
[318439292,1710235834484,-500.0,0.00015398,2]
[318439293,1710235834493,-500.0,0.00015398,2]
[318439294,1710235834503,-152.40741823,0.00015398,2]
[318439295,1710235834513,-500.0,0.00015398,2]
[318439296,1710235834522,-500.0,0.00015398,2]
[318439297,1710235834531,-932.54,0.00015398,2]
[318439298,1710235834541,-932.54,0.00015398,2]
[318439299,1710235834550,-500.0,0.00015398,2]
[318439300,1710235834560,-482.22966354,0.00015398,2]
[318439301,1710235834569,-500.0,0.00015398,2]
[318439302,1710235834579,-500.0,0.00015398,2]
[318439303,1710235834589,-500.0,0.00015398,2]
[318439304,1710235834599,-500.0,0.00015398,2]
[318439305,1710235834609,-500.0,0.00015398,2]
[318439306,1710235834618,-500.0,0.00015398,2]
[318439307,1710235834627,-500.0,0.00015398,2]
[318439308,1710235834637,-616.42910072,0.00015398,2]
[318439309,1710235834647,-500.0,0.00015398,2]
[318439310,1710235834657,-500.0,0.00015398,2]
[318439311,1710235834666,-500.0,0.00015398,2]
[318439312,1710235834675,-500.0,0.00015398,2]
[318439313,1710235834685,-500.0,0.00015398,2]
[318439314,1710235834695,-649.28364434,0.00015398,2]
[318439315,1710235834706,-500.0,0.00015398,2]
[318439316,1710235834715,-500.0,0.00015398,2]
[318439317,1710235834726,-500.0,0.00015398,2]
[318439318,1710235834735,-500.41388678,0.00015398,2]
[318439319,1710235834745,-500.0,0.00015398,2]
[318439320,1710235834755,-456.1631907,0.00015398,2]
[318439321,1710235834764,-500.0,0.00015398,2]
[318439322,1710235834774,-500.0,0.00015398,2]
[318439323,1710235834784,-500.0,0.00015398,2]
[318439324,1710235834793,-500.0,0.00015398,2]
[318439325,1710235834803,-500.0,0.00015398,2]
[318439326,1710235834813,-235.51954527,0.00015398,2]
[318439327,1710235834823,-500.0,0.00015398,2]
[318439328,1710235834833,-500.0,0.00015398,2]
[318439329,1710235834843,-500.0,0.00015398,2]
[318439330,1710235834852,-220.41807614,0.00015398,2]
[318439331,1710235834862,-500.0,0.00015398,2]
[318439332,1710235834871,-500.0,0.00015398,2]
[318439333,1710235834881,-500.0,0.00015398,2]
[318439334,1710235834890,-500.0,0.00015398,2]
[318439335,1710235834900,-500.0,0.00015398,2]
[318439336,1710235834909,-500.86901072,0.00015398,2]
[318439337,1710235834918,-500.0,0.00015398,2]
[318439338,1710235834928,-500.0,0.00015398,2]
[318439339,1710235834938,-500.0,0.00015398,2]
[318439340,1710235834947,-500.0,0.00015398,2]
[318439341,1710235834959,-510.98620312,0.00015398,2]
[318439342,1710235834969,-1371.91,0.00015398,2]
[318439343,1710235834979,-1371.91,0.00015398,2]
[318439344,1710235834988,-500.0,0.00015398,2]
[318439345,1710235834998,-500.0,0.00015398,2]
[318439346,1710235835009,-500.0,0.00015398,2]
[318439347,1710235835020,-500.0,0.00015398,2]
[318439348,1710235835030,-500.0,0.00015398,2]
[318439349,1710235835042,-500.0,0.00015398,2]
[318439350,1710235835054,-500.0,0.00015398,2]
[318439351,1710235835065,-500.0,0.00015398,2]
[318439352,1710235835076,-500.0,0.00015398,2]
[318439353,1710235835087,-500.0,0.00015398,2]
[318439354,1710235835098,-500.0,0.00015398,2]
[318439355,1710235835108,-500.0,0.00015398,2]
[318439356,1710235835119,-500.0,0.00015398,2]
[318439357,1710235835128,-500.0,0.00015398,2]
[318439358,1710235835138,-369.52202445,0.00015398,2]
[318439359,1710235835148,-500.0,0.00015398,2]
[318439360,1710235835157,-381.21759013,0.00015398,2]
[318439361,1710235835167,-500.0,0.00015398,2]
[318439362,1710235835176,-500.0,0.00015398,2]
[318439363,1710235835186,-500.0,0.00015398,2]
[318439364,1710235835195,-500.0,0.00015398,2]
[318439365,1710235835208,-500.0,0.00015398,2]
[318439366,1710235835218,-500.0,0.00015398,2]
[318439367,1710235835228,-500.0,0.00015398,2]
[318439368,1710235835238,-522.38657364,0.00015398,2]
[318439369,1710235835248,-573.0403568,0.00015398,2]
[318439370,1710235835258,-500.0,0.00015398,2]
[318439371,1710235835269,-589.54,0.00015398,2]
[318439372,1710235835280,-589.54,0.00015398,2]
[318439373,1710235835290,-500.0,0.00015398,2]
[318439374,1710235835302,-500.0,0.00015398,2]
[318439375,1710235835312,-500.0,0.00015398,2]
[318439376,1710235835322,-500.14641798,0.00015398,2]
[318439377,1710235835332,-639.06,0.00015398,2]
[318439378,1710235835341,-639.06,0.00015398,2]
[318439379,1710235835351,-201.66638544,0.00015398,2]
[318439380,1710235835361,-500.0,0.00015398,2]
[318439381,1710235835371,-773.55,0.00015398,2]
[318439382,1710235835381,-773.55,0.00015398,2]
[318439383,1710235835391,-500.0,0.00015398,2]
[318439384,1710235835406,-500.0,0.00015398,2]
[318439385,1710235835416,-405.48751254,0.00015398,2]
[318439386,1710235835427,-500.0,0.00015398,2]
[318439387,1710235835436,-500.0,0.00015398,2]
[318439388,1710235835448,-500.0,0.00015398,2]
[318439389,1710235835460,-576.60017913,0.00015398,2]
[318439390,1710235835470,-500.0,0.00015398,2]
[318439391,1710235835480,-857.83,0.00015398,2]
[318439392,1710235835490,-500.0,0.00015398,2]
[318439393,1710235835500,-857.83,0.00015398,2]
[318439394,1710235835510,-500.0,0.00015398,2]
[318439395,1710235835520,-500.0,0.00015398,2]
[318439396,1710235835532,-500.0,0.00015398,2]
[318439397,1710235835542,-500.0,0.00015398,2]
[318439398,1710235835553,-500.0,0.00015398,2]
[318439399,1710235835563,-500.0,0.00015398,2]
[318439400,1710235835573,-500.0,0.00015398,2]
[318439401,1710235835583,-500.0,0.00015398,2]
[318439402,1710235835593,-500.0,0.00015398,2]
[318439403,1710235835603,-500.0,0.00015398,2]
[318439404,1710235835613,-500.0,0.00015398,2]
[318439405,1710235835623,-500.0,0.00015398,2]
[318439406,1710235835632,-500.0,0.00015398,2]
[318439407,1710235835642,-500.0,0.00015398,2]
[318439408,1710235835652,-500.0,0.00015398,2]
[318439409,1710235835661,-500.0,0.00015398,2]
[318439410,1710235835672,-410.33592649,0.00015398,2]
[318439411,1710235835682,-500.0,0.00015398,2]
[318439412,1710235835692,-500.0,0.00015398,2]
[318439413,1710235835703,-500.0,0.00015398,2]
[318439414,1710235835713,-500.0,0.00015398,2]
[318439415,1710235835723,-250.06743552,0.00015398,2]
[318439416,1710235835733,-500.0,0.00015398,2]
[318439417,1710235835743,-500.0,0.00015398,2]
[318439418,1710235835753,-500.0,0.00015398,2]
[318439419,1710235835763,-500.0,0.00015398,2]
[318439420,1710235835773,-500.0,0.00015398,2]
[318439421,1710235835783,-500.0,0.00015398,2]
[318439422,1710235835793,-500.0,0.00015398,2]
[318439423,1710235835802,-500.0,0.00015398,2]
[318439424,1710235835812,-500.0,0.00015398,2]
[318439425,1710235835822,-500.0,0.00015398,2]
[318439426,1710235835832,-500.0,0.00015398,2]
[318439427,1710235835841,-500.0,0.00015398,2]
[318439428,1710235835922,-500.0,0.00015398,2]
[318439429,1710235835932,-500.0,0.00015398,2]
[318439430,1710235835942,-500.0,0.00015398,2]
[318439431,1710235835952,-500.0,0.00015398,2]
[318439432,1710235835961,-500.0,0.00015398,2]
[318439433,1710235835971,-500.0,0.00015398,2]
[318439434,1710235835981,-595.16006982,0.00015398,2]
[318439435,1710235835990,-500.0,0.00015398,2]
[318439436,1710235836000,-500.0,0.00015398,2]
[318439437,1710235836010,-500.0,0.00015398,2]
[318439438,1710235836020,-500.0,0.00015398,2]
[318439439,1710235836029,-500.0,0.00015398,2]
[318439440,1710235836039,-224.83864312,0.00015398,2]
[318439441,1710235836049,-500.0,0.00015398,2]
[318439442,1710235836059,-500.0,0.00015398,2]
[318439443,1710235836069,-501.88580557,0.00015398,2]
[318439444,1710235836078,-500.0,0.00015398,2]
[318439445,1710235836087,-500.0,0.00015398,2]
[318439446,1710235836097,-500.0,0.00015398,2]
[318439447,1710235836107,-500.0,0.00015398,2]
[318439448,1710235836117,-386.23990132,0.00015398,2]
[318439449,1710235836126,-500.0,0.00015399,2]
[318439450,1710235836136,-370.60315278,0.00015399,2]
[318439451,1710235836145,-500.0,0.00015399,2]
[318439452,1710235836154,-500.0,0.00015399,2]
[318439453,1710235836163,-500.0,0.00015399,2]
[318439454,1710235836173,-500.0,0.00015399,2]
[318439455,1710235836182,-300.95743769,0.00015399,2]
[318439456,1710235836191,-500.0,0.00015399,2]
[318439457,1710235836202,-510.28770476,0.00015399,2]
[318439458,1710235836212,-644.16083129,0.00015399,2]
[318439459,1710235836222,-578.34,0.00015399,2]
[318439460,1710235836232,-578.34,0.00015399,2]
[318439461,1710235836241,-501.63818297,0.00015399,2]
[318439462,1710235836251,-423.54636031,0.00015399,2]
[318439463,1710235836261,-500.0,0.00015399,2]
[318439464,1710235836271,-500.0,0.00015399,2]
[318439465,1710235836280,-500.0,0.00015399,2]
[318439466,1710235836289,-500.0,0.00015399,2]
[318439467,1710235836299,-500.0,0.00015399,2]
[318439468,1710235836309,-355.02626296,0.00015399,2]
[318439469,1710235836318,-500.0,0.00015399,2]
[318439470,1710235836327,-500.0,0.00015399,2]
[318439471,1710235836337,-500.0,0.00015399,2]
[318439472,1710235836346,-500.0,0.00015399,2]
[318439473,1710235836357,-500.0,0.00015399,2]
[318439474,1710235836366,-500.0,0.00015399,2]
[318439475,1710235836376,-500.0,0.00015399,2]
[318439476,1710235836385,-501.25719048,0.00015399,2]
[318439477,1710235836396,-500.0,0.00015399,2]
[318439478,1710235836405,-500.0,0.00015399,2]
[318439479,1710235836415,-500.0,0.00015399,2]
[318439480,1710235836425,-500.70884582,0.00015399,2]
[318439481,1710235836438,-500.0,0.00015399,2]
[318439482,1710235836447,-500.0,0.00015399,2]
[318439483,1710235836460,-501.35543404,0.00015399,2]
[318439484,1710235836469,-500.0,0.00015399,2]
[318439485,1710235836480,-576.62855124,0.00015399,2]
[318439486,1710235836490,-500.0,0.00015399,2]
[318439487,1710235836499,-523.28694096,0.00015399,2]
[318439488,1710235836512,-500.0,0.00015399,2]
[318439489,1710235836522,-500.0,0.00015399,2]
[318439490,1710235836532,-500.0,0.00015399,2]
[318439491,1710235836542,-500.0,0.00015399,2]
[318439492,1710235836551,-500.0,0.00015399,2]
[318439493,1710235836560,-287.29529732,0.00015399,2]
[318439494,1710235836570,-500.0,0.00015399,2]
[318439495,1710235836579,-200.78912147,0.00015399,2]
[318439496,1710235836588,-500.0,0.00015399,2]
[318439497,1710235836598,-500.0,0.00015399,2]
[318439498,1710235836608,-500.0,0.00015399,2]
[318439499,1710235836617,-500.0,0.00015399,2]
[318439500,1710235836627,-500.0,0.00015399,2]
[318439501,1710235836636,-500.0,0.00015399,2]
[318439502,1710235836645,-500.0,0.00015399,2]
[318439503,1710235836655,-500.0,0.00015399,2]
[318439504,1710235836665,-500.0,0.00015399,2]
[318439505,1710235836675,-500.0,0.00015399,2]
[318439506,1710235836684,-500.0,0.00015399,2]
[318439507,1710235836694,-500.0,0.00015399,2]
[318439508,1710235836705,-788.84,0.00015399,2]
[318439509,1710235836715,-788.84,0.00015399,2]
[318439510,1710235836724,-500.0,0.00015399,2]
[318439511,1710235836734,-500.0,0.00015399,2]
[318439512,1710235836743,-500.0,0.00015399,2]
[318439513,1710235836752,-2320.78,0.00015399,2]
[318439514,1710235836762,-360.41833135,0.00015399,2]
[318439515,1710235836771,-500.0,0.00015399,2]
[318439516,1710235836781,-502.31595366,0.00015399,2]
[318439517,1710235836790,-500.0,0.00015399,2]
[318439518,1710235836800,-500.0,0.00015399,2]
[318439519,1710235836810,-500.0,0.00015399,2]
[318439520,1710235836819,-500.0,0.00015399,2]
[318439521,1710235836829,-520.33,0.00015399,2]
[318439522,1710235836838,-520.33,0.00015399,2]
[318439523,1710235836848,-1380.68,0.00015399,2]
[318439524,1710235836857,-500.0,0.00015399,2]
[318439525,1710235836867,-500.0,0.00015399,2]
[318439526,1710235836876,-932.54,0.00015399,2]
[318439527,1710235836885,-932.54,0.00015399,2]
[318439528,1710235836895,-500.0,0.00015399,2]
[318439529,1710235836904,-500.0,0.00015399,2]
[318439530,1710235836914,-500.0,0.00015399,2]
[318439531,1710235836924,-500.0,0.00015399,2]
[318439532,1710235836933,-500.0,0.00015399,2]